[Event "Early-Titled-Tuesday-Blitz-January-16-2024"]
[Site "Chess.com"]
[Date "2024.01.16"]
[Round "1"]
[White "mitrabhaa"]
[Black "m_ezat"]
[Result "1-0"]
[WhiteElo "2918"]
[BlackElo "2492"]
[TimeControl "180+1"]
[EndTime "8:07:57 PST"]
[Termination "mitrabhaa won on time"]

1. Nf3 {[%clk 0:03:00.9]} 1... Nf6 {[%clk 0:02:58.7]} 2. d4 {[%clk 0:03:00.9]}
2... g6 {[%clk 0:02:58.4]} 3. g3 {[%clk 0:03:00.7]} 3... Bg7 {[%clk 0:02:58.4]}
4. Bg2 {[%clk 0:03:01.6]} 4... O-O {[%clk 0:02:58.9]} 5. O-O {[%clk 0:03:02.5]}
5... d6 {[%clk 0:02:58.5]} 6. c4 {[%clk 0:03:03.4]} 6... Nc6 {[%clk 0:02:57.9]}
7. Nc3 {[%clk 0:03:04.3]} 7... Bg4 {[%clk 0:02:57.4]} 8. d5 {[%clk 0:03:04]}
8... Na5 {[%clk 0:02:56.2]} 9. b3 {[%clk 0:03:03.1]} 9... c5 {[%clk 0:02:52.7]}
10. Bd2 {[%clk 0:03:02.8]} 10... a6 {[%clk 0:02:50.6]} 11. Qe1 {[%clk
0:03:02.4]} 11... b6 {[%clk 0:02:43.4]} 12. e4 {[%clk 0:03:01.4]} 12... Nd7
{[%clk 0:02:42]} 13. Rc1 {[%clk 0:02:59.1]} 13... Nb7 {[%clk 0:02:34.8]} 14. h3
{[%clk 0:02:58.4]} 14... Bxf3 {[%clk 0:02:34.1]} 15. Bxf3 {[%clk 0:02:59.3]}
15... b5 {[%clk 0:02:32.5]} 16. Be2 {[%clk 0:02:57.4]} 16... b4 {[%clk
0:02:22.9]} 17. Na4 {[%clk 0:02:51.5]} 17... a5 {[%clk 0:02:21.2]} 18. f4 {[%clk
0:02:50.9]} 18... Nb6 {[%clk 0:02:20.8]} 19. Bd3 {[%clk 0:02:45.3]} 19... Nxa4
{[%clk 0:02:20.5]} 20. bxa4 {[%clk 0:02:46.2]} 20... Qd7 {[%clk 0:02:20.5]} 21.
Bc2 {[%clk 0:02:46.2]} 21... Qxh3 {[%clk 0:02:19.8]} 22. e5 {[%clk 0:02:44.1]}
22... dxe5 {[%clk 0:02:16.9]} 23. fxe5 {[%clk 0:02:43.6]} 23... f5 {[%clk
0:02:01.8]} 24. Bg5 {[%clk 0:02:24.8]} 24... Rae8 {[%clk 0:01:53.2]} 25. Rf4
{[%clk 0:02:24.7]} 25... Bxe5 {[%clk 0:01:46.2]} 26. Qe3 {[%clk 0:02:14.2]}
26... h6 {[%clk 0:01:04.2]} 27. Rh4 {[%clk 0:02:08.1]} 27... Qxh4 {[%clk
0:01:00.8]} 28. gxh4 {[%clk 0:02:04.4]} 28... Bd4 {[%clk 0:01:00.1]} 29. Bxh6
{[%clk 0:02:04.7]} 29... Bxe3+ {[%clk 0:00:53.4]} 30. Bxe3 {[%clk 0:02:05.6]}
30... e6 {[%clk 0:00:49.2]} 31. Bh6 {[%clk 0:02:04.1]} 31... exd5 {[%clk
0:00:46.9]} 32. Bxf8 {[%clk 0:02:04.1]} 32... Kxf8 {[%clk 0:00:46.5]} 33. cxd5
{[%clk 0:02:04.1]} 33... Nd6 {[%clk 0:00:46.2]} 34. Bd3 {[%clk 0:02:03.8]} 34...
c4 {[%clk 0:00:45.9]} 35. Bf1 {[%clk 0:02:03.2]} 35... Re4 {[%clk 0:00:44.2]}
36. h5 {[%clk 0:01:11.7]} 36... g5 {[%clk 0:00:33.8]} 37. Kf2 {[%clk 0:01:12.6]}
37... Rh4 {[%clk 0:00:32]} 38. Be2 {[%clk 0:01:12.9]} 38... Kg7 {[%clk 0:00:30]}
39. Bf3 {[%clk 0:01:08.1]} 39... g4 {[%clk 0:00:27.1]} 40. Bg2 {[%clk
0:01:08.4]} 40... f4 {[%clk 0:00:26]} 41. Re1 {[%clk 0:01:07.5]} 41... c3 {[%clk
0:00:21.6]} 42. Re7+ {[%clk 0:01:03.4]} 42... Nf7 {[%clk 0:00:19.4]} 43. Be4
{[%clk 0:00:59.1]} 43... Rh2+ {[%clk 0:00:15.5]} 44. Kg1 {[%clk 0:00:58.8]}
44... Re2 {[%clk 0:00:15.4]} 45. d6 {[%clk 0:00:57.4]} 45... c2 {[%clk
0:00:14.4]} 46. Bxc2 {[%clk 0:00:57.7]} 46... Rxc2 {[%clk 0:00:14.7]} 47. d7
{[%clk 0:00:57.1]} 47... Rd2 {[%clk 0:00:14.7]} 48. h6+ {[%clk 0:00:57.5]} 48...
Kxh6 {[%clk 0:00:13.9]} 49. Rxf7 {[%clk 0:00:57.7]} 49... f3 {[%clk 0:00:13.3]}
50. Kf1 {[%clk 0:00:58]} 50... Kg5 {[%clk 0:00:11.4]} 51. Ke1 {[%clk 0:00:58.7]}
51... Rd6 {[%clk 0:00:11.6]} 52. Kf2 {[%clk 0:00:59.6]} 52... Rd2+ {[%clk
0:00:09.8]} 53. Ke1 {[%clk 0:00:59.8]} 53... Rd6 {[%clk 0:00:09]} 54. Kf2 {[%clk
0:01:00.1]} 54... Kg6 {[%clk 0:00:09]} 55. Re7 {[%clk 0:00:58.6]} 55... Kf6
{[%clk 0:00:09.2]} 56. Rh7 {[%clk 0:00:58.7]} 56... Ke6 {[%clk 0:00:08.4]} 57.
Rg7 {[%clk 0:00:47.9]} 57... Rxd7 {[%clk 0:00:07.3]} 58. Rxg4 {[%clk 0:00:48.6]}
1-0

[Event "Early-Titled-Tuesday-Blitz-January-16-2024"]
[Site "Chess.com"]
[Date "2024.01.16"]
[Round "1"]
[White "SHIVACalypso"]
[Black "Rsnr"]
[Result "0-1"]
[WhiteElo "2464"]
[BlackElo "2862"]
[TimeControl "180+1"]
[EndTime "8:07:57 PST"]
[Termination "Rsnr won by checkmate"]

1. Nf3 {[%clk 0:03:00.9]} 1... d5 {[%clk 0:02:58.9]} 2. d4 {[%clk 0:02:59.1]}
2... Nf6 {[%clk 0:02:57.3]} 3. g3 {[%clk 0:02:55.8]} 3... b5 {[%clk 0:02:55.9]}
4. Bg2 {[%clk 0:02:55.9]} 4... e6 {[%clk 0:02:56.5]} 5. O-O {[%clk 0:02:56.3]}
5... Be7 {[%clk 0:02:57.2]} 6. b3 {[%clk 0:02:53.6]} 6... O-O {[%clk 0:02:56.9]}
7. c4 {[%clk 0:02:52.1]} 7... bxc4 {[%clk 0:02:56.7]} 8. bxc4 {[%clk 0:02:53]}
8... c6 {[%clk 0:02:56.1]} 9. Ne5 {[%clk 0:02:51.4]} 9... Nfd7 {[%clk
0:02:53.8]} 10. Nxd7 {[%clk 0:02:48.2]} 10... Nxd7 {[%clk 0:02:50]} 11. Qc2
{[%clk 0:02:47.8]} 11... Ba6 {[%clk 0:02:47.8]} 12. Nd2 {[%clk 0:02:46.2]} 12...
Nb6 {[%clk 0:02:38.4]} 13. cxd5 {[%clk 0:02:44.9]} 13... cxd5 {[%clk 0:02:39.3]}
14. Re1 {[%clk 0:02:31.8]} 14... Rc8 {[%clk 0:02:39.5]} 15. Qb1 {[%clk
0:02:30.3]} 15... Na4 {[%clk 0:02:36.7]} 16. Qb3 {[%clk 0:02:23.5]} 16... Qa5
{[%clk 0:02:34.9]} 17. Nf3 {[%clk 0:02:07.7]} 17... Bb4 {[%clk 0:02:25.8]} 18.
Bd2 {[%clk 0:02:04.3]} 18... Bxd2 {[%clk 0:02:17.6]} 19. Nxd2 {[%clk 0:02:03.9]}
19... Nc3 {[%clk 0:01:56.8]} 20. e4 {[%clk 0:01:56.6]} 20... Ne2+ {[%clk
0:01:56]} 21. Rxe2 {[%clk 0:01:48.5]} 21... Bxe2 {[%clk 0:01:56.9]} 22. Qe3
{[%clk 0:01:48.2]} 22... Qc3 {[%clk 0:01:57.1]} 23. Qxc3 {[%clk 0:01:45.5]}
23... Rxc3 {[%clk 0:01:58]} 24. exd5 {[%clk 0:01:44.8]} 24... exd5 {[%clk
0:01:58.9]} 25. Bxd5 {[%clk 0:01:41.5]} 25... Rd8 {[%clk 0:01:58.6]} 26. Ne4
{[%clk 0:01:38.1]} 26... Rc7 {[%clk 0:01:39]} 27. Bb3 {[%clk 0:01:15.5]} 27...
Rxd4 {[%clk 0:01:35.8]} 28. Ng5 {[%clk 0:01:16]} 28... h6 {[%clk 0:01:29.2]} 29.
Re1 {[%clk 0:01:15.1]} 29... hxg5 {[%clk 0:00:53.2]} 30. Rxe2 {[%clk 0:01:14.9]}
30... g4 {[%clk 0:00:53.3]} 31. Kg2 {[%clk 0:01:11]} 31... Kh7 {[%clk 0:00:49]}
32. h3 {[%clk 0:01:08]} 32... gxh3+ {[%clk 0:00:43.1]} 33. Kxh3 {[%clk
0:01:08.9]} 33... Rcd7 {[%clk 0:00:43.9]} 34. Kg2 {[%clk 0:01:06.3]} 34... Rd2
{[%clk 0:00:43.4]} 35. Re4 {[%clk 0:01:05]} 35... f5 {[%clk 0:00:32.5]} 36. Rh4+
{[%clk 0:01:02.7]} 36... Kg6 {[%clk 0:00:32.8]} 37. Rf4 {[%clk 0:00:50.9]} 37...
R7d4 {[%clk 0:00:29.5]} 38. Rf3 {[%clk 0:00:37.9]} 38... Kg5 {[%clk 0:00:29]}
39. Rc3 {[%clk 0:00:33.4]} 39... g6 {[%clk 0:00:21]} 40. Rc6 {[%clk 0:00:30.5]}
40... a5 {[%clk 0:00:18.1]} 41. Ra6 {[%clk 0:00:21.4]} 41... a4 {[%clk
0:00:15.3]} 42. Bf7 {[%clk 0:00:16.6]} 42... Rd6 {[%clk 0:00:11.5]} 43. Rxa4
{[%clk 0:00:16.3]} 43... Kf6 {[%clk 0:00:11.7]} 44. Bb3 {[%clk 0:00:16.2]} 44...
Rb2 {[%clk 0:00:12]} 45. Rf4 {[%clk 0:00:14.6]} 45... g5 {[%clk 0:00:12]} 46.
Rf3 {[%clk 0:00:14.2]} 46... Rdd2 {[%clk 0:00:11.6]} 47. Bc4 {[%clk 0:00:12.1]}
47... f4 {[%clk 0:00:09.7]} 48. gxf4 {[%clk 0:00:11.2]} 48... g4 {[%clk
0:00:10.2]} 49. Re3 {[%clk 0:00:10.4]} 49... Rxf2+ {[%clk 0:00:10.4]} 50. Kg3
{[%clk 0:00:10.3]} 50... Rg2+ {[%clk 0:00:11]} 51. Kh4 {[%clk 0:00:09.2]} 51...
Kf5 {[%clk 0:00:11.6]} 52. Bd5 {[%clk 0:00:05.5]} 52... Rh2+ {[%clk 0:00:10.5]}
53. Kg3 {[%clk 0:00:06]} 53... Rh3# {[%clk 0:00:11]} 0-1

[Event "Early-Titled-Tuesday-Blitz-January-16-2024"]
[Site "Chess.com"]
[Date "2024.01.16"]
[Round "1"]
[White "KnobbedHornbill"]
[Black "DuleMudule"]
[Result "1-0"]
[WhiteElo "2476"]
[BlackElo "2833"]
[TimeControl "180+1"]
[EndTime "8:07:57 PST"]
[Termination "KnobbedHornbill won by checkmate"]

1. d4 {[%clk 0:03:00.9]} 1... d5 {[%clk 0:03:00]} 2. c4 {[%clk 0:03:01.6]} 2...
Bf5 {[%clk 0:02:59]} 3. Nf3 {[%clk 0:03:02]} 3... e6 {[%clk 0:02:59.1]} 4. Nc3
{[%clk 0:03:02.3]} 4... Nc6 {[%clk 0:02:59.7]} 5. g3 {[%clk 0:03:02.1]} 5... Nb4
{[%clk 0:02:59]} 6. Qa4+ {[%clk 0:02:47.5]} 6... c6 {[%clk 0:02:58.2]} 7. cxd5
{[%clk 0:02:27.4]} 7... exd5 {[%clk 0:02:57.4]} 8. Nh4 {[%clk 0:02:09.1]} 8...
Bc2 {[%clk 0:02:53.8]} 9. b3 {[%clk 0:02:04.1]} 9... a6 {[%clk 0:02:51.4]} 10.
Kd2 {[%clk 0:01:47.2]} 10... b5 {[%clk 0:02:47.9]} 11. Qa3 {[%clk 0:01:44.8]}
11... Nd3 {[%clk 0:02:44.9]} 12. exd3 {[%clk 0:01:42.4]} 12... Bxa3 {[%clk
0:02:37.6]} 13. Bxa3 {[%clk 0:01:43.3]} 13... Ne7 {[%clk 0:01:57]} 14. Re1
{[%clk 0:01:38.8]} 14... Ra7 {[%clk 0:01:56.6]} 15. Nf5 {[%clk 0:01:39.4]} 15...
O-O {[%clk 0:01:37.9]} 16. Nxe7+ {[%clk 0:01:26.9]} 16... Kh8 {[%clk 0:01:09.9]}
17. Nxc6 {[%clk 0:01:26.7]} 17... Qf6 {[%clk 0:01:08.7]} 18. Nxa7 {[%clk
0:01:14.4]} 18... Qxf2+ {[%clk 0:00:55.3]} 19. Re2 {[%clk 0:01:07.4]} 19... Qf3
{[%clk 0:00:55.4]} 20. Kxc2 {[%clk 0:00:49.7]} 20... Qxh1 {[%clk 0:00:53.8]} 21.
Bg2 {[%clk 0:00:49.8]} 21... Qxh2 {[%clk 0:00:49.3]} 22. Bxf8 {[%clk 0:00:49.4]}
22... h6 {[%clk 0:00:45.6]} 23. Bd6 {[%clk 0:00:44.3]} 23... Qh5 {[%clk
0:00:43]} 24. Bxd5 {[%clk 0:00:39.3]} 24... Kh7 {[%clk 0:00:41.4]} 25. Be4+
{[%clk 0:00:36.8]} 25... f5 {[%clk 0:00:41.1]} 26. Bd5 {[%clk 0:00:36]} 26...
Qg4 {[%clk 0:00:36.8]} 27. Nc6 {[%clk 0:00:34.2]} 27... a5 {[%clk 0:00:35.8]}
28. a3 {[%clk 0:00:29.6]} 28... h5 {[%clk 0:00:33.1]} 29. Rh2 {[%clk 0:00:23.8]}
29... g6 {[%clk 0:00:23.2]} 30. Bf4 {[%clk 0:00:23.8]} 30... g5 {[%clk 0:00:21]}
31. Ne5 {[%clk 0:00:23.6]} 31... gxf4 {[%clk 0:00:16.6]} 32. Nxg4 {[%clk
0:00:22.7]} 32... fxg3 {[%clk 0:00:14.7]} 33. Rxh5+ {[%clk 0:00:19.3]} 33... Kg6
{[%clk 0:00:14.8]} 34. Rh3 {[%clk 0:00:14.3]} 34... f4 {[%clk 0:00:12.8]} 35.
Be4+ {[%clk 0:00:12.3]} 35... Kg5 {[%clk 0:00:12.9]} 36. Bf3 {[%clk 0:00:12.7]}
36... b4 {[%clk 0:00:13.1]} 37. Ne4+ {[%clk 0:00:12.2]} 37... Kf5 {[%clk
0:00:13.2]} 38. Nxg3+ {[%clk 0:00:12.6]} 38... fxg3 {[%clk 0:00:12.8]} 39. Rxg3
{[%clk 0:00:13.5]} 39... bxa3 {[%clk 0:00:13.3]} 40. Kb1 {[%clk 0:00:13.6]}
40... Kf4 {[%clk 0:00:13.7]} 41. Ne5 {[%clk 0:00:12.2]} 41... a4 {[%clk
0:00:13.8]} 42. d5 {[%clk 0:00:13.1]} 42... axb3 {[%clk 0:00:13.7]} 43. d6
{[%clk 0:00:12.9]} 43... Ke3 {[%clk 0:00:12]} 44. Bd5+ {[%clk 0:00:11.1]} 44...
Kd2 {[%clk 0:00:09.4]} 45. Bxb3 {[%clk 0:00:12]} 45... Kc3 {[%clk 0:00:09.6]}
46. d7 {[%clk 0:00:12.9]} 46... Kb4 {[%clk 0:00:09]} 47. d4 {[%clk 0:00:13.8]}
47... a2+ {[%clk 0:00:09.9]} 48. Bxa2 {[%clk 0:00:12.3]} 48... Ka4 {[%clk
0:00:10.2]} 49. d8=Q {[%clk 0:00:12.6]} 49... Kb4 {[%clk 0:00:09.3]} 50. Qc8
{[%clk 0:00:12.9]} 50... Ka5 {[%clk 0:00:09]} 51. Rb3 {[%clk 0:00:13.7]} 51...
Ka4 {[%clk 0:00:09.1]} 52. Qa8# {[%clk 0:00:14]} 1-0

[Event "Early-Titled-Tuesday-Blitz-January-16-2024"]
[Site "Chess.com"]
[Date "2024.01.16"]
[Round "1"]
[White "HamedWafa4"]
[Black "N4700000"]
[Result "1-0"]
[WhiteElo "2861"]
[BlackElo "2463"]
[TimeControl "180+1"]
[EndTime "8:07:59 PST"]
[Termination "HamedWafa4 won on time"]

1. e4 {[%clk 0:03:00.9]} 1... e6 {[%clk 0:02:59.5]} 2. d4 {[%clk 0:02:44.7]}
2... d5 {[%clk 0:02:58.9]} 3. e5 {[%clk 0:02:35.5]} 3... c5 {[%clk 0:02:57.6]}
4. c3 {[%clk 0:02:35.9]} 4... Nc6 {[%clk 0:02:56.3]} 5. Nf3 {[%clk 0:02:36.4]}
5... Nge7 {[%clk 0:02:54.6]} 6. Na3 {[%clk 0:02:33.6]} 6... cxd4 {[%clk
0:02:45.3]} 7. cxd4 {[%clk 0:02:32.8]} 7... Ng6 {[%clk 0:02:34.4]} 8. h4 {[%clk
0:02:28.4]} 8... Bb4+ {[%clk 0:02:11.6]} 9. Bd2 {[%clk 0:02:26]} 9... Bxd2+
{[%clk 0:02:00.5]} 10. Qxd2 {[%clk 0:02:23.9]} 10... h6 {[%clk 0:01:58.9]} 11.
h5 {[%clk 0:02:22]} 11... Nge7 {[%clk 0:01:58.2]} 12. Nb5 {[%clk 0:02:22.2]}
12... O-O {[%clk 0:01:57.5]} 13. Nd6 {[%clk 0:02:20.6]} 13... Nf5 {[%clk
0:01:55]} 14. Nxf5 {[%clk 0:02:16.1]} 14... exf5 {[%clk 0:01:55.9]} 15. Bd3
{[%clk 0:02:14.6]} 15... Qb6 {[%clk 0:01:51.1]} 16. Qf4 {[%clk 0:02:06.1]} 16...
Qb4+ {[%clk 0:01:40]} 17. Qd2 {[%clk 0:02:05.1]} 17... Qb6 {[%clk 0:01:39.5]}
18. Be2 {[%clk 0:01:51]} 18... Be6 {[%clk 0:01:26.2]} 19. O-O {[%clk 0:01:50.5]}
19... Rfc8 {[%clk 0:01:23.8]} 20. Rfc1 {[%clk 0:01:45]} 20... a5 {[%clk
0:01:12.7]} 21. Rc5 {[%clk 0:01:33]} 21... a4 {[%clk 0:01:01.1]} 22. Rac1 {[%clk
0:01:18.1]} 22... a3 {[%clk 0:00:59.2]} 23. b3 {[%clk 0:01:05]} 23... Qd8 {[%clk
0:00:43.8]} 24. b4 {[%clk 0:00:54.1]} 24... Qb6 {[%clk 0:00:22.1]} 25. Rb5
{[%clk 0:00:48.8]} 25... Qa7 {[%clk 0:00:21.7]} 26. Rbc5 {[%clk 0:00:32.3]}
26... Qb6 {[%clk 0:00:20.5]} 27. Qc3 {[%clk 0:00:25]} 27... Kh7 {[%clk
0:00:19.3]} 28. Bd3 {[%clk 0:00:23.3]} 28... Ne7 {[%clk 0:00:11.6]} 29. g4
{[%clk 0:00:20.6]} 29... Kg8 {[%clk 0:00:09.6]} 30. gxf5 {[%clk 0:00:19]} 30...
Nxf5 {[%clk 0:00:08.6]} 31. Rxc8+ {[%clk 0:00:17.9]} 31... Rxc8 {[%clk
0:00:08.2]} 32. Qxc8+ {[%clk 0:00:18.6]} 32... Bxc8 {[%clk 0:00:08.5]} 33. Rxc8+
{[%clk 0:00:19.4]} 33... Kh7 {[%clk 0:00:08.8]} 34. Bxf5+ {[%clk 0:00:20.2]}
34... g6 {[%clk 0:00:09.2]} 35. hxg6+ {[%clk 0:00:20.9]} 35... fxg6 {[%clk
0:00:09.6]} 36. Bh3 {[%clk 0:00:18.3]} 36... Qxb4 {[%clk 0:00:09.4]} 37. Rc7+
{[%clk 0:00:18.5]} 37... Kg8 {[%clk 0:00:09.1]} 38. e6 {[%clk 0:00:19.1]} 38...
Qb1+ {[%clk 0:00:06]} 39. Kg2 {[%clk 0:00:19.4]} 39... Qe4 {[%clk 0:00:06]} 40.
Rc8+ {[%clk 0:00:17.1]} 40... Kg7 {[%clk 0:00:05.4]} 41. Rc7+ {[%clk 0:00:17.2]}
41... Kf8 {[%clk 0:00:04.6]} 42. Rf7+ {[%clk 0:00:17]} 42... Ke8 {[%clk
0:00:04.1]} 43. Rg7 {[%clk 0:00:16.5]} 43... g5 {[%clk 0:00:03.6]} 44. Rg8+
{[%clk 0:00:11.5]} 44... Ke7 {[%clk 0:00:03.4]} 45. Rg7+ {[%clk 0:00:10.7]}
45... Ke8 {[%clk 0:00:02.5]} 46. Rf7 {[%clk 0:00:06.4]} 46... g4 {[%clk
0:00:01.4]} 47. Kg3 {[%clk 0:00:05.4]} 1-0

[Event "Early-Titled-Tuesday-Blitz-January-16-2024"]
[Site "Chess.com"]
[Date "2024.01.16"]
[Round "1"]
[White "tactic"]
[Black "LuminaryHunter"]
[Result "1-0"]
[WhiteElo "2553"]
[BlackElo "1886"]
[TimeControl "180+1"]
[EndTime "8:07:59 PST"]
[Termination "tactic won by resignation"]

1. d4 {[%clk 0:03:00.9]} 1... d5 {[%clk 0:02:50.2]} 2. c4 {[%clk 0:03:00.9]}
2... e6 {[%clk 0:02:50.2]} 3. Nf3 {[%clk 0:03:00.2]} 3... Nf6 {[%clk 0:02:49.3]}
4. g3 {[%clk 0:02:59.2]} 4... Be7 {[%clk 0:02:43.2]} 5. Bg2 {[%clk 0:02:59.4]}
5... O-O {[%clk 0:02:43.3]} 6. O-O {[%clk 0:02:59.8]} 6... dxc4 {[%clk 0:02:37]}
7. Ne5 {[%clk 0:02:58.3]} 7... Nc6 {[%clk 0:02:20.9]} 8. Nxc6 {[%clk 0:02:56.2]}
8... bxc6 {[%clk 0:02:21]} 9. Na3 {[%clk 0:02:51.8]} 9... c3 {[%clk 0:01:45.7]}
10. bxc3 {[%clk 0:02:51.6]} 10... Rb8 {[%clk 0:01:46.1]} 11. Nc4 {[%clk
0:02:45.1]} 11... c5 {[%clk 0:01:44.5]} 12. Ne5 {[%clk 0:02:43.1]} 12... Bb7
{[%clk 0:01:40.7]} 13. Bxb7 {[%clk 0:02:01.4]} 13... Rxb7 {[%clk 0:01:37.9]} 14.
Nc6 {[%clk 0:01:54.5]} 14... Qd6 {[%clk 0:01:20.9]} 15. Nxe7+ {[%clk 0:01:30.6]}
15... Qxe7 {[%clk 0:01:21.2]} 16. Ba3 {[%clk 0:01:31.3]} 16... Rd8 {[%clk
0:01:12.1]} 17. Bxc5 {[%clk 0:01:29]} 17... Qe8 {[%clk 0:01:12.3]} 18. Qc2
{[%clk 0:01:21.7]} 18... Rdb8 {[%clk 0:00:54.7]} 19. Rab1 {[%clk 0:01:19.7]}
19... a6 {[%clk 0:00:54.8]} 20. Rxb7 {[%clk 0:01:16.2]} 20... Rxb7 {[%clk
0:00:54.8]} 21. Rb1 {[%clk 0:01:17]} 21... Qc6 {[%clk 0:00:53.4]} 22. Rxb7
{[%clk 0:01:11.4]} 22... Qxb7 {[%clk 0:00:53.6]} 23. Qb3 {[%clk 0:01:11.3]}
23... Qxb3 {[%clk 0:00:49.9]} 24. axb3 {[%clk 0:01:12.2]} 24... Ne4 {[%clk
0:00:49.5]} 25. Bb4 {[%clk 0:01:06.9]} 25... Nd2 {[%clk 0:00:48.6]} 26. Ba5
{[%clk 0:00:47.1]} 26... Nxb3 {[%clk 0:00:44.1]} 27. Bxc7 {[%clk 0:00:46.9]}
27... Kf8 {[%clk 0:00:39.9]} 28. Bd6+ {[%clk 0:00:43.1]} 28... Ke8 {[%clk
0:00:40]} 29. Kf1 {[%clk 0:00:38.6]} 29... Kd7 {[%clk 0:00:39.9]} 30. Ba3 {[%clk
0:00:34.7]} 30... Kc6 {[%clk 0:00:35.3]} 31. e4 {[%clk 0:00:30.7]} 31... h5
{[%clk 0:00:32.5]} 32. Ke2 {[%clk 0:00:30.2]} 32... Kb5 {[%clk 0:00:31.4]} 33.
Kd3 {[%clk 0:00:29.2]} 33... a5 {[%clk 0:00:22.5]} 34. Bf8 {[%clk 0:00:19.1]}
34... a4 {[%clk 0:00:21.7]} 35. c4+ {[%clk 0:00:18.8]} 35... Kc6 {[%clk
0:00:21.4]} 36. Kc3 {[%clk 0:00:15.2]} 36... g6 {[%clk 0:00:19.7]} 37. d5+
{[%clk 0:00:11.8]} 37... exd5 {[%clk 0:00:19.4]} 38. cxd5+ {[%clk 0:00:11.4]}
38... Kb5 {[%clk 0:00:17.7]} 39. e5 {[%clk 0:00:11.2]} 39... Nc5 {[%clk
0:00:16]} 40. f4 {[%clk 0:00:05.5]} 40... Ne4+ {[%clk 0:00:15]} 41. Kd4 {[%clk
0:00:05.5]} 41... Nd2 {[%clk 0:00:13.2]} 42. Kd3 {[%clk 0:00:04.2]} 42... Nc4
{[%clk 0:00:12.3]} 43. Kd4 {[%clk 0:00:04.4]} 43... Nb6 {[%clk 0:00:12.3]} 44.
e6 {[%clk 0:00:04.6]} 44... fxe6 {[%clk 0:00:11.7]} 45. dxe6 {[%clk 0:00:05.5]}
45... Kc6 {[%clk 0:00:12.1]} 46. Ke5 {[%clk 0:00:05.7]} 46... Nc4+ {[%clk
0:00:11.2]} 47. Kf6 {[%clk 0:00:06.4]} 47... a3 {[%clk 0:00:10.2]} 48. Bxa3
{[%clk 0:00:07.1]} 48... Nxa3 {[%clk 0:00:09.5]} 49. e7 {[%clk 0:00:07.8]} 49...
Kd7 {[%clk 0:00:08.6]} 50. Kf7 {[%clk 0:00:08.2]} 50... Nc4 {[%clk 0:00:08.6]}
51. e8=Q+ {[%clk 0:00:08.9]} 51... Kc7 {[%clk 0:00:08.7]} 52. Kxg6 {[%clk
0:00:05.6]} 52... Nd6 {[%clk 0:00:08.4]} 53. Qe7+ {[%clk 0:00:06.2]} 53... Kc6
{[%clk 0:00:08.5]} 54. Qxd6+ {[%clk 0:00:06.7]} 54... Kxd6 {[%clk 0:00:08.6]}
55. Kxh5 {[%clk 0:00:07.6]} 1-0